[Event "*** Titled Tuesday Blitz"]
[Site "Chess.com"]
[Date "2019.09.03"]
[Round "8"]
[White "nocnypako"]
[Black "becemix"]
[Result "1-0"]
[WhiteElo "2585"]
[BlackElo "2408"]
[TimeControl "180+2"]
[EndTime "16:53:49 PDT"]
[Termination "nocnypako won on time"]

1. d4 {[%clk 0:03:01.9]} 1... d5 {[%clk 0:02:53.4]} 2. c4 {[%clk 0:02:57.6]}
2... e6 {[%clk 0:02:51.2]} 3. Nc3 {[%clk 0:02:57.2]} 3... c6 {[%clk 0:02:51.9]}
4. Nf3 {[%clk 0:02:54.9]} 4... Nf6 {[%clk 0:02:52]} 5. Bg5 {[%clk 0:02:54.3]}
5... h6 {[%clk 0:02:48.5]} 6. Bh4 {[%clk 0:02:53.7]} 6... dxc4 {[%clk
0:02:49.2]} 7. e4 {[%clk 0:02:52]} 7... g5 {[%clk 0:02:50.3]} 8. Bg3 {[%clk
0:02:52.2]} 8... b5 {[%clk 0:02:51.8]} 9. Be2 {[%clk 0:02:52]} 9... Bb7 {[%clk
0:02:46.9]} 10. h4 {[%clk 0:02:42.8]} 10... Rg8 {[%clk 0:02:36.7]} 11. hxg5
{[%clk 0:02:39.2]} 11... hxg5 {[%clk 0:02:38.6]} 12. Qc2 {[%clk 0:02:19.6]}
12... Nbd7 {[%clk 0:02:27.3]} 13. O-O-O {[%clk 0:02:15.9]} 13... Qb6 {[%clk
0:02:27.4]} 14. Ne5 {[%clk 0:02:13.9]} 14... Nxe5 {[%clk 0:02:21.5]} 15. Bxe5
{[%clk 0:02:12.1]} 15... Nd7 {[%clk 0:02:22.8]} 16. Bh5 {[%clk 0:02:12.5]} 16...
Bg7 {[%clk 0:02:17]} 17. Bxg7 {[%clk 0:01:35.8]} 17... Rxg7 {[%clk 0:02:16.8]}
18. d5 {[%clk 0:01:13.7]} 18... cxd5 {[%clk 0:02:11.8]} 19. exd5 {[%clk
0:01:12.8]} 19... O-O-O {[%clk 0:02:13.4]} 20. Bxf7 {[%clk 0:00:58.1]} 20...
Rxf7 {[%clk 0:02:09.6]} 21. dxe6 {[%clk 0:00:59.1]} 21... Qxe6 {[%clk
0:02:09.4]} 22. Nxb5 {[%clk 0:00:59.8]} 22... Kb8 {[%clk 0:02:03.9]} 23. Nd6
{[%clk 0:00:53]} 23... Re7 {[%clk 0:01:39.8]} 24. Nxb7 {[%clk 0:00:32]} 24...
Kxb7 {[%clk 0:01:39.8]} 25. Qc3 {[%clk 0:00:29]} 25... Rc8 {[%clk 0:01:36.7]}
26. Kb1 {[%clk 0:00:25.2]} 26... Nb6 {[%clk 0:01:35.1]} 27. Ka1 {[%clk
0:00:25.7]} 27... Qe4 {[%clk 0:01:28.2]} 28. Rde1 {[%clk 0:00:20.9]} 28... Qxg2
{[%clk 0:01:12.7]} 29. Rxe7+ {[%clk 0:00:18.8]} 29... Ka8 {[%clk 0:01:14.6]} 30.
Qe1 {[%clk 0:00:13.6]} 30... c3 {[%clk 0:01:10]} 31. bxc3 {[%clk 0:00:12]} 31...
Nd5 {[%clk 0:01:11.4]} 32. Qe4 {[%clk 0:00:09.8]} 32... Qxe4 {[%clk 0:01:10.9]}
33. Rxe4 {[%clk 0:00:11.7]} 33... Nxc3 {[%clk 0:01:10.5]} 34. Re5 {[%clk
0:00:11.9]} 34... Rd8 {[%clk 0:01:11.4]} 35. Rc1 {[%clk 0:00:09.8]} 35... Na4
{[%clk 0:01:11.1]} 36. Rxg5 {[%clk 0:00:09.8]} 36... Kb7 {[%clk 0:01:10.5]} 37.
Rg7+ {[%clk 0:00:10]} 37... Ka6 {[%clk 0:01:08.1]} 38. Rg6+ {[%clk 0:00:11]}
38... Ka5 {[%clk 0:01:07.9]} 39. Rg5+ {[%clk 0:00:11.6]} 39... Kb4 {[%clk
0:01:08.3]} 40. Rg4+ {[%clk 0:00:12.2]} 40... Ka5 {[%clk 0:01:09.8]} 41. f4
{[%clk 0:00:07.8]} 41... Rd4 {[%clk 0:01:10.1]} 42. Rg5+ {[%clk 0:00:08.8]}
42... Kb4 {[%clk 0:01:10.5]} 43. Rb1+ {[%clk 0:00:09.2]} 43... Kc4 {[%clk
0:01:10.4]} 44. f5 {[%clk 0:00:09.5]} 44... Nc3 {[%clk 0:01:11.2]} 45. Rc1
{[%clk 0:00:10.7]} 45... Rd2 {[%clk 0:01:12]} 46. Rg4+ {[%clk 0:00:11.6]} 46...
Kd3 {[%clk 0:01:08.9]} 47. Rg3+ {[%clk 0:00:12.4]} 47... Ke4 {[%clk 0:00:17.7]}
48. Rgxc3 {[%clk 0:00:14.3]} 1-0

[Event "*** Titled Tuesday Blitz"]
[Site "Chess.com"]
[Date "2019.09.03"]
[Round "8"]
[White "KL31"]
[Black "vova-79"]
[Result "0-1"]
[WhiteElo "2509"]
[BlackElo "2417"]
[TimeControl "180+2"]
[EndTime "16:53:51 PDT"]
[Termination "vova-79 won on time"]

1. d4 {[%clk 0:03:01.9]} 1... d5 {[%clk 0:02:58.7]} 2. Nf3 {[%clk 0:03:03.1]}
2... Nf6 {[%clk 0:02:58.8]} 3. Bf4 {[%clk 0:03:04.5]} 3... c5 {[%clk 0:02:59]}
4. e3 {[%clk 0:03:05.5]} 4... Nc6 {[%clk 0:02:59.7]} 5. Nbd2 {[%clk 0:03:04.9]}
5... cxd4 {[%clk 0:02:57.3]} 6. exd4 {[%clk 0:03:04.1]} 6... Bg4 {[%clk
0:02:57.2]} 7. c3 {[%clk 0:02:59.9]} 7... e6 {[%clk 0:02:57.7]} 8. Qb3 {[%clk
0:02:46.9]} 8... Qc8 {[%clk 0:02:56]} 9. Ne5 {[%clk 0:02:41.8]} 9... Bh5 {[%clk
0:02:54.9]} 10. Bb5 {[%clk 0:02:32.8]} 10... Nd7 {[%clk 0:02:53.3]} 11. Nxc6
{[%clk 0:02:29.5]} 11... bxc6 {[%clk 0:02:52.4]} 12. Bd3 {[%clk 0:02:30.1]}
12... Be7 {[%clk 0:02:50.9]} 13. O-O {[%clk 0:02:30.5]} 13... O-O {[%clk
0:02:51.2]} 14. Rfe1 {[%clk 0:02:28]} 14... c5 {[%clk 0:02:50.7]} 15. Qa4 {[%clk
0:02:06.2]} 15... Nb6 {[%clk 0:02:23.6]} 16. Qa6 {[%clk 0:02:00.2]} 16... cxd4
{[%clk 0:02:04.9]} 17. cxd4 {[%clk 0:01:58.2]} 17... Bf6 {[%clk 0:02:05.4]} 18.
Nb3 {[%clk 0:01:50.2]} 18... Nc4 {[%clk 0:02:03.1]} 19. Qxc8 {[%clk 0:01:26.2]}
19... Rfxc8 {[%clk 0:02:05]} 20. Rab1 {[%clk 0:01:21.3]} 20... a5 {[%clk
0:01:49.8]} 21. Be5 {[%clk 0:01:06.5]} 21... a4 {[%clk 0:01:20.5]} 22. Bxf6
{[%clk 0:01:04.6]} 22... axb3 {[%clk 0:01:20.3]} 23. axb3 {[%clk 0:01:04.6]}
23... Nd2 {[%clk 0:01:16.4]} 24. Bg5 {[%clk 0:01:01.2]} 24... Nxb1 {[%clk
0:01:15.5]} 25. Rxb1 {[%clk 0:00:54]} 25... Bg6 {[%clk 0:01:14.6]} 26. Bxg6
{[%clk 0:00:51]} 26... hxg6 {[%clk 0:01:16.5]} 27. Be7 {[%clk 0:00:49.9]} 27...
Rc2 {[%clk 0:01:12.5]} 28. h4 {[%clk 0:00:32.3]} 28... Rac8 {[%clk 0:01:07.9]}
29. Bc5 {[%clk 0:00:33.2]} 29... e5 {[%clk 0:00:59.7]} 30. b4 {[%clk 0:00:31.6]}
30... exd4 {[%clk 0:00:59.2]} 31. Rd1 {[%clk 0:00:32.3]} 31... Rxb2 {[%clk
0:00:52.7]} 32. Rxd4 {[%clk 0:00:31.8]} 32... Rd8 {[%clk 0:00:52.6]} 33. g4
{[%clk 0:00:26.4]} 33... f6 {[%clk 0:00:52.7]} 34. Rd3 {[%clk 0:00:21.6]} 34...
Kf7 {[%clk 0:00:52.3]} 35. Kg2 {[%clk 0:00:23]} 35... Rc2 {[%clk 0:00:45.1]} 36.
Kf3 {[%clk 0:00:22.3]} 36... Rc4 {[%clk 0:00:42.6]} 37. Ra3 {[%clk 0:00:21.8]}
37... Rd7 {[%clk 0:00:42.2]} 38. Rd3 {[%clk 0:00:17.9]} 38... Ke6 {[%clk
0:00:42.2]} 39. Re3+ {[%clk 0:00:18.4]} 39... Re4 {[%clk 0:00:37.6]} 40. Rxe4+
{[%clk 0:00:19.5]} 40... dxe4+ {[%clk 0:00:37.7]} 41. Kxe4 {[%clk 0:00:21.4]}
41... f5+ {[%clk 0:00:36.8]} 42. Kf4 {[%clk 0:00:19.2]} 42... Rd3 {[%clk
0:00:33.4]} 43. Kg5 {[%clk 0:00:15.3]} 43... fxg4 {[%clk 0:00:30.9]} 44. Kxg6
{[%clk 0:00:12.7]} 44... g3 {[%clk 0:00:27.3]} 45. Kxg7 {[%clk 0:00:03.8]} 45...
g2 {[%clk 0:00:24.1]} 46. f4 {[%clk 0:00:03.2]} 46... g1=Q+ {[%clk 0:00:17.8]}
47. Bxg1 {[%clk 0:00:02.2]} 47... Rg3+ {[%clk 0:00:19.1]} 0-1

[Event "*** Titled Tuesday Blitz"]
[Site "Chess.com"]
[Date "2019.09.03"]
[Round "8"]
[White "Roman_Ovetchkin"]
[Black "Thjop"]
[Result "1-0"]
[WhiteElo "2757"]
[BlackElo "2577"]
[TimeControl "180+2"]
[EndTime "16:53:59 PDT"]
[Termination "Roman_Ovetchkin won by resignation"]

1. d4 {[%clk 0:03:01.9]} 1... Nf6 {[%clk 0:03:00.2]} 2. c4 {[%clk 0:03:02.7]}
2... g6 {[%clk 0:03:01]} 3. Nc3 {[%clk 0:03:03.1]} 3... Bg7 {[%clk 0:03:02.5]}
4. e4 {[%clk 0:03:03.6]} 4... d6 {[%clk 0:03:03.7]} 5. Nf3 {[%clk 0:03:02.7]}
5... O-O {[%clk 0:03:04.7]} 6. Be2 {[%clk 0:03:03.9]} 6... e5 {[%clk 0:03:05.6]}
7. d5 {[%clk 0:03:04.5]} 7... a5 {[%clk 0:03:05.5]} 8. Bg5 {[%clk 0:03:05.2]}
8... h6 {[%clk 0:03:04.2]} 9. Be3 {[%clk 0:03:06.1]} 9... Ng4 {[%clk 0:03:03.8]}
10. Bd2 {[%clk 0:03:06.9]} 10... Na6 {[%clk 0:03:02]} 11. h3 {[%clk 0:03:04.8]}
11... Nf6 {[%clk 0:03:02.2]} 12. Be3 {[%clk 0:03:05.3]} 12... Nd7 {[%clk
0:02:54.8]} 13. Qd2 {[%clk 0:02:56.6]} 13... Kh7 {[%clk 0:02:54.6]} 14. g4
{[%clk 0:02:57.4]} 14... Ndc5 {[%clk 0:02:54.4]} 15. h4 {[%clk 0:02:40.7]} 15...
f5 {[%clk 0:02:47]} 16. h5 {[%clk 0:02:32.7]} 16... f4 {[%clk 0:02:38.3]} 17.
hxg6+ {[%clk 0:02:30.3]} 17... Kxg6 {[%clk 0:02:38.1]} 18. Bxc5 {[%clk
0:02:25.6]} 18... Nxc5 {[%clk 0:02:36.5]} 19. Nh4+ {[%clk 0:02:23.5]} 19... Kf7
{[%clk 0:02:36.9]} 20. Bf3 {[%clk 0:02:20]} 20... Bf6 {[%clk 0:02:34.2]} 21. Nf5
{[%clk 0:02:19.9]} 21... Bxf5 {[%clk 0:02:31.2]} 22. gxf5 {[%clk 0:02:20.9]}
22... Bg5 {[%clk 0:02:30.6]} 23. Qe2 {[%clk 0:02:15]} 23... Qf6 {[%clk
0:02:21.9]} 24. O-O-O {[%clk 0:02:12.2]} 24... Ke7 {[%clk 0:02:20.9]} 25. Kb1
{[%clk 0:02:13]} 25... Kd8 {[%clk 0:02:16.2]} 26. b3 {[%clk 0:02:10]} 26... Rg8
{[%clk 0:02:08.6]} 27. Qc2 {[%clk 0:02:10.4]} 27... Rg7 {[%clk 0:02:08.7]} 28.
a3 {[%clk 0:02:05.1]} 28... a4 {[%clk 0:02:06.6]} 29. b4 {[%clk 0:01:47.5]}
29... Nb3 {[%clk 0:02:07.1]} 30. Nb5 {[%clk 0:01:41.1]} 30... Nd4 {[%clk
0:02:03.9]} 31. Nxd4 {[%clk 0:01:32.2]} 31... exd4 {[%clk 0:02:05.8]} 32. Qd3
{[%clk 0:01:33.2]} 32... b6 {[%clk 0:02:04.4]} 33. Ka2 {[%clk 0:01:22.3]} 33...
Qe5 {[%clk 0:02:00.4]} 34. Rc1 {[%clk 0:01:23.3]} 34... c5 {[%clk 0:01:44.9]}
35. dxc6 {[%clk 0:01:20.9]} 35... Kc7 {[%clk 0:01:44.9]} 36. b5 {[%clk
0:01:19.7]} 36... Ra7 {[%clk 0:01:41.1]} 37. Rhg1 {[%clk 0:01:16.6]} 37... Ra8
{[%clk 0:01:40.7]} 38. Rcd1 {[%clk 0:01:15]} 38... Rag8 {[%clk 0:01:36.2]} 39.
Qxd4 {[%clk 0:00:57.7]} 39... Qxd4 {[%clk 0:01:32.1]} 40. Rxd4 {[%clk
0:00:57.7]} 40... Bf6 {[%clk 0:01:33.1]} 41. Rxg7+ {[%clk 0:00:58.5]} 41... Rxg7
{[%clk 0:01:33.8]} 42. Rd1 {[%clk 0:01:00.4]} 42... h5 {[%clk 0:01:21.8]} 43.
Bxh5 {[%clk 0:00:48.6]} 43... Rg2 {[%clk 0:01:20.9]} 44. Rf1 {[%clk 0:00:50]}
44... Bd4 {[%clk 0:01:16.7]} 45. Bf3 {[%clk 0:00:46.2]} 45... Rh2 {[%clk
0:01:14.3]} 46. Kb1 {[%clk 0:00:46.9]} 46... Be5 {[%clk 0:01:02.3]} 47. Kc2
{[%clk 0:00:44.3]} 47... Bd4 {[%clk 0:01:03.1]} 48. Kd3 {[%clk 0:00:44.8]} 48...
Be5 {[%clk 0:01:04.3]} 49. Ke2 {[%clk 0:00:44.7]} 49... Bd4 {[%clk 0:01:04.5]}
50. Kd3 {[%clk 0:00:45.1]} 50... Be5 {[%clk 0:01:05.2]} 51. Bd1 {[%clk
0:00:43.6]} 51... Rh3+ {[%clk 0:01:03.3]} 52. f3 {[%clk 0:00:43.6]} 52... Rh2
{[%clk 0:01:02.5]} 53. Bxa4 {[%clk 0:00:42.9]} 53... Ra2 {[%clk 0:01:01.6]} 54.
Bb3 {[%clk 0:00:43.4]} 54... Rxa3 {[%clk 0:00:56]} 55. Kc2 {[%clk 0:00:44.4]}
55... Ra8 {[%clk 0:00:47.5]} 56. Rh1 {[%clk 0:00:43.7]} 56... Rh8 {[%clk
0:00:48.2]} 57. Rxh8 {[%clk 0:00:44]} 57... Bxh8 {[%clk 0:00:50.1]} 58. Kd1
{[%clk 0:00:45.3]} 58... Be5 {[%clk 0:00:48.5]} 59. Ke2 {[%clk 0:00:46.8]} 59...
d5 {[%clk 0:00:46]} 60. exd5 {[%clk 0:00:42]} 60... Kd8 {[%clk 0:00:44.1]} 61.
c5 {[%clk 0:00:41.2]} 61... Kc7 {[%clk 0:00:45.1]} 62. cxb6+ {[%clk 0:00:40.5]}
62... Kxb6 {[%clk 0:00:47]} 63. Bc4 {[%clk 0:00:41.6]} 63... Kc7 {[%clk
0:00:46.4]} 64. Kd3 {[%clk 0:00:42.8]} 64... Bf6 {[%clk 0:00:45.8]} 65. Ke4
{[%clk 0:00:43.3]} 1-0

[Event "*** Titled Tuesday Blitz"]
[Site "Chess.com"]
[Date "2019.09.03"]
[Round "8"]
[White "JAN2404"]
[Black "HanSchut"]
[Result "0-1"]
[WhiteElo "1689"]
[BlackElo "2207"]
[TimeControl "180+2"]
[EndTime "16:54:04 PDT"]
[Termination "HanSchut won on time"]

1. c4 {[%clk 0:03:01.9]} 1... c5 {[%clk 0:02:58.8]} 2. Nc3 {[%clk 0:03:02.3]}
2... Nc6 {[%clk 0:03:00.2]} 3. Nf3 {[%clk 0:02:59.7]} 3... Nf6 {[%clk
0:03:01.6]} 4. g3 {[%clk 0:03:00]} 4... d5 {[%clk 0:03:02.6]} 5. cxd5 {[%clk
0:03:00.5]} 5... Nxd5 {[%clk 0:03:04.5]} 6. Bg2 {[%clk 0:02:59.8]} 6... Nc7
{[%clk 0:03:06.1]} 7. d3 {[%clk 0:02:59.9]} 7... e5 {[%clk 0:03:04.9]} 8. O-O
{[%clk 0:03:00.9]} 8... Be7 {[%clk 0:03:05.6]} 9. Bd2 {[%clk 0:02:59.4]} 9...
Be6 {[%clk 0:03:05.5]} 10. Rc1 {[%clk 0:03:00.1]} 10... Qd7 {[%clk 0:03:06.7]}
11. a3 {[%clk 0:03:01.4]} 11... Rc8 {[%clk 0:03:06.7]} 12. Ne4 {[%clk
0:02:46.6]} 12... b6 {[%clk 0:03:01.7]} 13. Neg5 {[%clk 0:02:42.7]} 13... Bxg5
{[%clk 0:03:02]} 14. Nxg5 {[%clk 0:02:43.3]} 14... Bd5 {[%clk 0:03:01.6]} 15.
Ne4 {[%clk 0:02:39.2]} 15... h6 {[%clk 0:02:56.9]} 16. Bc3 {[%clk 0:02:30.2]}
16... O-O {[%clk 0:02:54.7]} 17. Qa4 {[%clk 0:02:13]} 17... Rfd8 {[%clk
0:02:47.3]} 18. b4 {[%clk 0:02:09.1]} 18... Nd4 {[%clk 0:02:43.2]} 19. Qd1
{[%clk 0:02:01]} 19... Bb3 {[%clk 0:02:34.1]} 20. Qd2 {[%clk 0:01:57.6]} 20...
cxb4 {[%clk 0:02:26.1]} 21. Bxb4 {[%clk 0:01:50]} 21... Be6 {[%clk 0:02:24.7]}
22. Nd6 {[%clk 0:01:31.6]} 22... Nb3 {[%clk 0:02:14.4]} 23. Qc2 {[%clk
0:01:31.4]} 23... Nxc1 {[%clk 0:02:15]} 24. Nxc8 {[%clk 0:01:32.3]} 24... Nxe2+
{[%clk 0:02:09.5]} 25. Qxe2 {[%clk 0:01:12]} 25... Rxc8 {[%clk 0:02:08.4]} 26.
Qxe5 {[%clk 0:01:12.8]} 26... Nd5 {[%clk 0:01:53.6]} 27. Bd2 {[%clk 0:01:05.1]}
27... Ne7 {[%clk 0:01:41.3]} 28. d4 {[%clk 0:00:57.8]} 28... Rd8 {[%clk
0:01:35.6]} 29. Bc3 {[%clk 0:00:56.7]} 29... Bd5 {[%clk 0:01:32.2]} 30. Re1
{[%clk 0:00:49.6]} 30... Ng6 {[%clk 0:01:12.7]} 31. Qe3 {[%clk 0:00:42.4]} 31...
Bxg2 {[%clk 0:01:11.7]} 32. Kxg2 {[%clk 0:00:44.3]} 32... Qd5+ {[%clk
0:01:08.3]} 33. f3 {[%clk 0:00:45.5]} 33... Kh7 {[%clk 0:01:08.8]} 34. Bb2
{[%clk 0:00:45.8]} 34... Rc8 {[%clk 0:01:08.8]} 35. Re2 {[%clk 0:00:44.2]} 35...
Qg5 {[%clk 0:01:04.2]} 36. Qxg5 {[%clk 0:00:37.3]} 36... hxg5 {[%clk 0:01:06.1]}
37. d5 {[%clk 0:00:37.9]} 37... Rd8 {[%clk 0:01:06.1]} 38. Rd2 {[%clk
0:00:38.9]} 38... f6 {[%clk 0:01:03.7]} 39. Kf2 {[%clk 0:00:39.6]} 39... Kg8
{[%clk 0:00:57.2]} 40. d6 {[%clk 0:00:03.6]} 40... Kf7 {[%clk 0:00:57.1]} 41.
Ke3 {[%clk 0:00:05]} 41... Ke6 {[%clk 0:00:56.1]} 42. Ke4 {[%clk 0:00:06.4]}
42... Rxd6 {[%clk 0:00:54.7]} 43. Rxd6+ {[%clk 0:00:08.2]} 43... Kxd6 {[%clk
0:00:55.5]} 44. Kf5 {[%clk 0:00:10.1]} 44... Ne7+ {[%clk 0:00:56.3]} 45. Kg4
{[%clk 0:00:10.8]} 45... Ke6 {[%clk 0:00:53.9]} 46. a4 {[%clk 0:00:11.6]} 46...
Nd5 {[%clk 0:00:46.7]} 47. Kh5 {[%clk 0:00:12.5]} 47... Kf7 {[%clk 0:00:47]} 48.
Ba3 {[%clk 0:00:13.3]} 48... Ne3 {[%clk 0:00:46.4]} 49. h4 {[%clk 0:00:12.7]}
49... gxh4 {[%clk 0:00:46.7]} 50. gxh4 {[%clk 0:00:14.5]} 50... Nc4 {[%clk
0:00:45.9]} 51. Bb4 {[%clk 0:00:15.1]} 51... a5 {[%clk 0:00:43.3]} 52. Be1
{[%clk 0:00:13.3]} 52... Nb2 {[%clk 0:00:43.4]} 53. f4 {[%clk 0:00:14.1]} 53...
Nxa4 {[%clk 0:00:44.5]} 54. Kg4 {[%clk 0:00:15.3]} 54... Nc5 {[%clk 0:00:45.2]}
55. h5 {[%clk 0:00:17.2]} 55... Nd3 {[%clk 0:00:45.3]} 56. Bd2 {[%clk 0:00:18]}
56... a4 {[%clk 0:00:46]} 57. f5 {[%clk 0:00:15.9]} 57... b5 {[%clk 0:00:46.9]}
58. h6 {[%clk 0:00:10.6]} 58... gxh6 {[%clk 0:00:46.6]} 59. Bxh6 {[%clk
0:00:12.5]} 59... b4 {[%clk 0:00:47.5]} 60. Be3 {[%clk 0:00:13.7]} 60... b3
{[%clk 0:00:46.5]} 61. Bd4 {[%clk 0:00:15.6]} 61... b2 {[%clk 0:00:47]} 0-1

[Event "*** Titled Tuesday Blitz"]
[Site "Chess.com"]
[Date "2019.09.03"]
[Round "8"]
[White "Sanan_Sjugirov"]
[Black "BASSU1"]
[Result "1/2-1/2"]
[WhiteElo "2871"]
[BlackElo "2590"]
[TimeControl "180+2"]
[EndTime "16:54:22 PDT"]
[Termination "Game drawn by repetition"]

1. e4 {[%clk 0:03:01.9]} 1... e5 {[%clk 0:02:59]} 2. Nf3 {[%clk 0:03:02.5]} 2...
Nc6 {[%clk 0:02:58.5]} 3. Bb5 {[%clk 0:03:02.9]} 3... g6 {[%clk 0:02:52.6]} 4.
c3 {[%clk 0:02:43]} 4... Bg7 {[%clk 0:02:50.8]} 5. d4 {[%clk 0:02:41.7]} 5...
exd4 {[%clk 0:02:51.2]} 6. cxd4 {[%clk 0:02:42.7]} 6... a6 {[%clk 0:02:52.3]} 7.
Bxc6 {[%clk 0:02:43.2]} 7... dxc6 {[%clk 0:02:54.2]} 8. Nc3 {[%clk 0:02:31.2]}
8... Bg4 {[%clk 0:02:50.2]} 9. Be3 {[%clk 0:02:32.1]} 9... Ne7 {[%clk
0:02:47.9]} 10. h3 {[%clk 0:01:51.5]} 10... Bxf3 {[%clk 0:02:46.7]} 11. Qxf3
{[%clk 0:01:48.9]} 11... f5 {[%clk 0:02:44.7]} 12. e5 {[%clk 0:01:43.8]} 12...
Qd7 {[%clk 0:02:35.4]} 13. O-O-O {[%clk 0:01:42.6]} 13... O-O-O {[%clk
0:02:36.3]} 14. Bg5 {[%clk 0:01:38.9]} 14... h6 {[%clk 0:02:28]} 15. Bxe7 {[%clk
0:01:39.7]} 15... Qxe7 {[%clk 0:02:29.9]} 16. Qe3 {[%clk 0:01:36.4]} 16... Kb8
{[%clk 0:02:24.5]} 17. f4 {[%clk 0:01:36.5]} 17... g5 {[%clk 0:02:19.9]} 18. g3
{[%clk 0:01:36.5]} 18... gxf4 {[%clk 0:02:04.1]} 19. gxf4 {[%clk 0:01:38.4]}
19... Qe6 {[%clk 0:02:05.3]} 20. Kb1 {[%clk 0:01:38.6]} 20... Bf8 {[%clk
0:01:57.8]} 21. Rhg1 {[%clk 0:01:32.7]} 21... Be7 {[%clk 0:01:55.1]} 22. Ne2
{[%clk 0:01:24]} 22... Rhg8 {[%clk 0:01:52.4]} 23. Qb3 {[%clk 0:01:18.9]} 23...
Qxb3 {[%clk 0:01:42.7]} 24. axb3 {[%clk 0:01:20.8]} 24... Bh4 {[%clk 0:01:37.8]}
25. Kc2 {[%clk 0:00:56.2]} 25... Kc8 {[%clk 0:01:30.9]} 26. Rdf1 {[%clk
0:00:38.2]} 26... Kd7 {[%clk 0:01:23.8]} 27. d5 {[%clk 0:00:28.9]} 27... cxd5
{[%clk 0:01:24]} 28. Nd4 {[%clk 0:00:30.2]} 28... Rdf8 {[%clk 0:01:20.9]} 29.
Rxg8 {[%clk 0:00:26.8]} 29... Rxg8 {[%clk 0:01:16.6]} 30. Nxf5 {[%clk
0:00:26.5]} 30... Rg2+ {[%clk 0:01:12.9]} 31. Kc3 {[%clk 0:00:21.3]} 31... Bf2
{[%clk 0:01:01.1]} 32. Nxh6 {[%clk 0:00:20]} 32... c5 {[%clk 0:01:02.1]} 33. Kd3
{[%clk 0:00:18.1]} 33... Rh2 {[%clk 0:00:49.3]} 34. f5 {[%clk 0:00:05.7]} 34...
Rxh3+ {[%clk 0:00:45]} 35. Ke2 {[%clk 0:00:06.9]} 35... Bd4 {[%clk 0:00:45.4]}
36. Ng4 {[%clk 0:00:04.8]} 36... Rxb3 {[%clk 0:00:37.1]} 37. f6 {[%clk
0:00:05.9]} 37... Rxb2+ {[%clk 0:00:38.3]} 38. Kd3 {[%clk 0:00:06.3]} 38... Rb3+
{[%clk 0:00:32.9]} 39. Kc2 {[%clk 0:00:06.9]} 39... Rb2+ {[%clk 0:00:29]} 40.
Kc1 {[%clk 0:00:06.6]} 40... Ra2 {[%clk 0:00:30]} 41. Rf3 {[%clk 0:00:06.8]}
41... Ra1+ {[%clk 0:00:18.9]} 42. Kc2 {[%clk 0:00:07.5]} 42... Ra2+ {[%clk
0:00:20.3]} 43. Kc1 {[%clk 0:00:05.9]} 43... Ra1+ {[%clk 0:00:21.4]} 44. Kd2
{[%clk 0:00:05.5]} 44... Ra2+ {[%clk 0:00:21.6]} 45. Kd1 {[%clk 0:00:06.4]}
45... Ra1+ {[%clk 0:00:22.3]} 46. Kc2 {[%clk 0:00:05.5]} 46... Ra2+ {[%clk
0:00:23.5]} 47. Kd1 {[%clk 0:00:03.1]} 47... Ra1+ {[%clk 0:00:24.5]} 48. Ke2
{[%clk 0:00:04.7]} 48... Ra2+ {[%clk 0:00:24.2]} 49. Kf1 {[%clk 0:00:05.7]}
49... Ra1+ {[%clk 0:00:23.5]} 50. Ke2 {[%clk 0:00:06.5]} 50... Ra2+ {[%clk
0:00:23.6]} 51. Ke1 {[%clk 0:00:07.9]} 51... Ra1+ {[%clk 0:00:23.9]} 52. Kd2
{[%clk 0:00:09.2]} 52... Ra2+ {[%clk 0:00:25]} 53. Kd1 {[%clk 0:00:09.3]}
1/2-1/2